fUSD/lending_fUSD_20250421
["ID","MTS","AMOUNT","RATE_DAILY","PERIOD"]
[358525761,1745233839698,-500.0,0.00048746,7]
[358525763,1745233839708,-500.0,0.00048746,7]
[358525765,1745233839717,-576.4988847,0.00048746,7]
[358525767,1745233839726,-500.0,0.00048746,7]
[358525769,1745233839736,-438.86394823,0.00048746,7]
[358525771,1745233839745,-200.04021235,0.00048746,7]
[358525773,1745233839755,-500.0,0.00048746,7]
[358525775,1745233839764,-246.12695501,0.00048746,7]
[358525777,1745233839773,-500.0,0.00048746,7]
[358525779,1745233839782,-500.0,0.00048746,7]
[358525781,1745233839791,-500.0,0.00048746,7]
[358525783,1745233839800,-500.0,0.00048746,7]
[358525786,1745233839810,-500.0,0.00048746,7]
[358525788,1745233839819,-532.03148509,0.00048746,7]
[358525790,1745233839828,-36170.9236,0.00048746,2]
[358525792,1745233839838,-500.0,0.00048749,7]
[358525794,1745233839847,-3245.94,0.00048749,7]
[358525796,1745233839857,-45585.5696256,0.0004875,4]
[358525798,1745233839866,-5809.28342388,0.0004875,5]
[358525801,1745233839883,-890.54535279,0.0004875,5]
[358525803,1745233839894,-6596.03655,0.0004875,5]
[358525805,1745233839906,-365.08771863,0.0004875,5]
[358525808,1745233839918,-1291.4868564,0.0004875,5]
[358525810,1745233839930,-3623.3027265,0.0004875,5]
[358525819,1745233840008,-881.7715013,0.00047831,15]
[358525842,1745233840218,-2254.92729262,0.00047831,15]
[358525843,1745233840228,-13517.30596457,0.0004875,5]
[358525845,1745233840240,-13090.47528803,0.0004875,5]
[358525847,1745233840249,-150.0,0.00048752,7]
[358525849,1745233840258,-500.0,0.00048755,7]
[358525851,1745233840267,-502.60956591,0.00048755,7]
[358525853,1745233840276,-500.0,0.00048755,7]
[358525855,1745233840285,-500.0,0.00048755,7]
[358525857,1745233840294,-500.0,0.00048755,7]
[358525859,1745233840303,-247.13627915,0.00048755,7]
[358525861,1745233840312,-500.0,0.00048755,7]
[358525863,1745233840321,-500.0,0.00048755,7]
[358525865,1745233840330,-500.0,0.00048755,7]
[358525867,1745233840340,-500.0,0.00048755,7]
[358525869,1745233840351,-500.0,0.00048755,7]
[358525871,1745233840360,-500.0,0.00048755,7]
[358525873,1745233840369,-548.37548356,0.00048755,7]
[358525875,1745233840378,-500.0,0.00048755,7]
[358525877,1745233840387,-500.0,0.00048755,7]
[358525878,1745233840396,-500.0,0.00048755,7]
[358525880,1745233840405,-500.0,0.00048755,7]
[358525882,1745233840414,-207.49750375,0.00048755,7]
[358525884,1745233840423,-506.38675903,0.00048755,7]
[358525886,1745233840432,-500.0,0.00048755,7]
[358525888,1745233840441,-500.0,0.00048755,7]
[358525890,1745233840450,-500.0,0.00048755,7]
[358525891,1745233840459,-500.0,0.00048755,7]
[358525893,1745233840468,-514.26326675,0.00048755,7]
[358525895,1745233840478,-513.54209878,0.00048755,7]
[358525897,1745233840487,-414.9342157,0.00048755,7]
[358525899,1745233840496,-541.74971052,0.00048755,7]
[358525901,1745233840505,-500.0,0.00048755,7]
[358525903,1745233840514,-165.41916488,0.00048755,7]
[358525905,1745233840523,-500.0,0.00048755,7]
[358525907,1745233840532,-500.0,0.00048755,7]
[358525909,1745233840541,-500.0,0.00048755,7]
[358525911,1745233840551,-500.0,0.00048755,7]
[358525913,1745233840559,-500.0,0.00048755,7]
[358525927,1745233840679,-525.31475404,0.00048755,7]
[358525929,1745233840689,-588.5342434,0.00048755,7]
[358525931,1745233840698,-500.0,0.00048755,7]
[358525933,1745233840707,-500.0,0.00048755,7]
[358525935,1745233840715,-564.1951004,0.00048755,7]
[358525937,1745233840725,-500.0,0.00048755,7]
[358525939,1745233840734,-305.857106,0.00048755,7]
[358525940,1745233840743,-500.0,0.00048755,7]
[358525942,1745233840752,-511.82518281,0.00048755,7]
[358525944,1745233840762,-537.99,0.00048755,7]
[358525946,1745233840772,-500.0,0.00048755,7]
[358525948,1745233840781,-500.0,0.00048755,7]
[358525950,1745233840791,-500.0,0.00048755,7]
[358525953,1745233840800,-500.0,0.00048755,7]
[358525956,1745233840809,-547.99640149,0.00048755,7]
[358525959,1745233840819,-500.0,0.00048755,7]
[358525962,1745233840828,-500.0,0.00048755,7]
[358525966,1745233840837,-500.0,0.00048755,7]
[358525969,1745233840847,-500.0,0.00048755,7]
[358525972,1745233840857,-575.97183244,0.00048755,7]
[358525976,1745233840866,-500.0,0.00048755,7]
[358525980,1745233840876,-203.46058736,0.00048755,7]
[358525984,1745233840885,-500.0,0.00048755,7]
[358525988,1745233840894,-509.67213527,0.00048755,7]
[358525991,1745233840903,-510.48658596,0.00048755,7]
[358525994,1745233840913,-497.14838046,0.00048755,7]
[358525997,1745233840921,-508.19358261,0.00048755,7]
[358526000,1745233840931,-500.0,0.00048755,7]
[358526002,1745233840940,-517.96380861,0.00048755,7]
[358526004,1745233840949,-478.09306118,0.00048755,7]
[358526005,1745233840958,-174.87,0.00048755,7]
[358526007,1745233840968,-515.02709183,0.00048755,7]
[358526010,1745233840981,-537.79886844,0.00048755,7]
[358526011,1745233840990,-521.54529197,0.00048755,7]
[358526013,1745233841000,-174.0848,0.00048756,10]
[358526015,1745233841010,-1228.12,0.00048759,2]
[358526017,1745233841020,-500.0,0.00048759,7]
[358526019,1745233841029,-617.42,0.00048759,7]
[358526021,1745233841039,-349.88894254,0.0004876,15]
[358526022,1745233841049,-289.42437579,0.0004876,33]
[358526023,1745233841059,-2749.6363477,0.0004876,2]
[358526024,1745233841068,-412.5067645,0.0004876,2]
[358526025,1745233841077,-150.0,0.00048762,7]
[358526026,1745233841086,-1000.0,0.00048765,14]
[358526027,1745233841095,-150.0,0.00048774,7]
[358526028,1745233841104,-150.0,0.00048774,7]
[358526029,1745233841113,-150.0,0.00048783,7]
[358526030,1745233841122,-150.0,0.00048784,7]
[358526031,1745233841131,-11295.8809702,0.0004879,5]
[358526032,1745233841140,-2900.0,0.000488,17]
[358526033,1745233841149,-1200.0,0.000488,17]
[358526034,1745233841158,-150.0,0.00048803,7]
[358526035,1745233841168,-150.0,0.00048806,7]
[358526036,1745233841177,-150.0,0.0004881,7]
[358526037,1745233841188,-150.0,0.00048812,7]
[358526038,1745233841197,-150.0,0.00048813,7]
[358526039,1745233841205,-150.0,0.00048813,7]
[358526040,1745233841214,-150.0,0.00048813,7]
[358526041,1745233841224,-150.0,0.00048817,7]
[358526043,1745233841233,-3175.0,0.00048822,120]
[358526045,1745233841242,-150.0,0.00048824,7]
[358526047,1745233841251,-22792.7848128,0.00048826,4]
[358526049,1745233841260,-11295.8809702,0.00048828,5]
[358526051,1745233841269,-150.0,0.00048829,7]
[358526053,1745233841278,-150.0,0.00048834,7]
[358526055,1745233841287,-11295.8809702,0.00048836,5]
[358526057,1745233841296,-22792.7848128,0.00048837,4]
[358526059,1745233841305,-11295.8809702,0.00048837,5]
[358526061,1745233841314,-154.03711879,0.00048841,7]
[358526062,1745233841323,-150.0,0.00048842,7]
[358526064,1745233841332,-11295.8809702,0.00048844,5]
[358526066,1745233841342,-536.85022888,0.00048845,7]
[358526068,1745233841351,-500.0,0.00048845,7]
[358526070,1745233841360,-500.0,0.00048845,7]
[358526072,1745233841369,-500.0,0.00048845,7]
[358526074,1745233841378,-500.0,0.00048845,7]
[358526077,1745233841388,-629.68636055,0.00048845,7]
[358526079,1745233841398,-500.0,0.00048845,7]
[358526080,1745233841407,-22792.7848128,0.00048845,4]
[358526082,1745233841416,-22591.7619404,0.00048845,5]
[358526084,1745233841425,-500.0,0.00048846,7]
[358526086,1745233841434,-500.0,0.00048846,7]
[358526088,1745233841443,-500.0,0.00048846,7]
[358526090,1745233841453,-500.0,0.00048846,7]
[358526092,1745233841462,-500.0,0.00048846,7]
[358526094,1745233841471,-500.0,0.00048846,7]
[358526096,1745233841480,-500.0,0.00048846,7]
[358526098,1745233841489,-622.93,0.00048846,7]
[358526100,1745233841498,-622.93,0.00048846,7]
[358526102,1745233841507,-281.23,0.00048846,7]
[358526104,1745233841516,-720.5,0.00048846,7]
[358526106,1745233841525,-720.5,0.00048846,7]
[358526108,1745233841534,-500.0,0.00048846,7]
[358526110,1745233841543,-240.30428967,0.00048846,7]
[358526112,1745233841553,-264.89218517,0.00048846,7]
[358526114,1745233841562,-500.0,0.00048846,7]
[358526116,1745233841571,-500.0,0.00048846,7]
[358526118,1745233841580,-500.0,0.00048846,7]
[358526120,1745233841590,-500.0,0.00048846,7]
[358526122,1745233841599,-500.0,0.00048846,7]
[358526124,1745233841608,-544.47823911,0.00048846,7]
[358526126,1745233841618,-500.0,0.00048846,7]
[358526128,1745233841627,-537.99,0.00048846,7]
[358526130,1745233841636,-500.0,0.00048846,7]
[358526132,1745233841645,-500.0,0.00048846,7]
[358526134,1745233841655,-557.78118552,0.00048846,7]
[358526136,1745233841663,-500.0,0.00048846,7]
[358526138,1745233841672,-500.0,0.00048846,7]
[358526140,1745233841681,-500.0,0.00048846,7]
[358526142,1745233841691,-500.0,0.00048846,7]
[358526144,1745233841700,-500.0,0.00048846,7]
[358526146,1745233841709,-3245.94,0.00048846,7]
[358526148,1745233841719,-500.0,0.00048846,7]
[358526150,1745233841728,-91171.1392512,0.00048846,4]
[358526152,1745233841738,-90367.0477615,0.00048846,5]
[358526154,1745233841747,-22792.7848128,0.00048849,4]
[358526156,1745233841756,-22591.7619404,0.00048849,5]
[358526158,1745233841765,-150.0,0.00048849,7]
[358526160,1745233841774,-500.0,0.00048849,7]
[358526162,1745233841785,-3245.94,0.00048849,7]
[358526164,1745233841794,-45585.5696256,0.0004885,4]
[358526166,1745233841803,-11295.8809702,0.0004885,5]
[358526168,1745233841812,-150.0,0.0004885,7]
[358526170,1745233841821,-442.2366144,0.0004885,7]
[358526172,1745233841830,-442.2366144,0.0004885,7]
[358526174,1745233841840,-150.0,0.00048851,7]
[358526175,1745233841850,-500.0,0.00048852,7]
[358526177,1745233841860,-500.0,0.00048852,7]
[358526179,1745233841869,-500.0,0.00048854,7]
[358526182,1745233841878,-4024.13,0.00048854,7]
[358526184,1745233841888,-500.0,0.00048854,7]
[358526185,1745233841897,-500.0,0.00048854,7]
[358526187,1745233841906,-500.0,0.00048854,7]
[358526189,1745233841915,-500.0,0.00048854,7]
[358526191,1745233841924,-500.0,0.00048854,7]
[358526193,1745233841934,-500.0,0.00048854,7]
[358526195,1745233841943,-504.19144791,0.00048855,7]
[358526197,1745233841953,-477.47364158,0.00048855,7]
[358526199,1745233841962,-500.0,0.00048855,7]
[358526201,1745233841972,-500.0,0.00048855,7]
[358526203,1745233841983,-500.0,0.00048855,7]
[358526205,1745233841992,-500.0,0.00048855,7]
[358526207,1745233842001,-500.0,0.00048855,7]
[358526209,1745233842010,-500.0,0.00048855,7]
[358526211,1745233842021,-500.0,0.00048855,7]
[358526213,1745233842029,-500.0,0.00048855,7]
[358526215,1745233842039,-500.0,0.00048855,7]
[358526217,1745233842047,-500.0,0.00048855,7]
[358526219,1745233842057,-500.0,0.00048855,7]
[358526221,1745233842066,-500.0,0.00048855,7]
[358526223,1745233842075,-500.0,0.00048855,7]
[358526225,1745233842085,-500.0,0.00048855,7]
[358526227,1745233842094,-500.0,0.00048855,7]
[358526229,1745233842103,-500.0,0.00048855,7]
[358526231,1745233842112,-500.0,0.00048855,7]
[358526233,1745233842122,-500.0,0.00048855,7]
[358526235,1745233842131,-500.0,0.00048855,7]
[358526237,1745233842139,-500.0,0.00048855,7]
[358526238,1745233842148,-327.55084245,0.00048855,7]
[358526240,1745233842157,-531.0442369,0.00048855,7]
[358526242,1745233842167,-500.0,0.00048855,7]
[358526244,1745233842176,-500.0,0.00048855,7]
[358526246,1745233842185,-500.0,0.00048855,7]
[358526248,1745233842194,-500.0,0.00048855,7]
[358526250,1745233842203,-500.0,0.00048855,7]
[358526252,1745233842212,-500.0,0.00048855,7]
[358526254,1745233842221,-500.0,0.00048855,7]
[358526256,1745233842230,-500.0,0.00048855,7]
[358526258,1745233842239,-500.0,0.00048855,7]
[358526260,1745233842248,-500.0,0.00048855,7]
[358526262,1745233842258,-500.0,0.00048855,7]
[358526264,1745233842267,-500.0,0.00048855,7]
[358526266,1745233842276,-500.0,0.00048855,7]
[358526268,1745233842285,-500.0,0.00048855,7]
[358526270,1745233842294,-500.0,0.00048855,7]
[358526272,1745233842303,-500.0,0.00048855,7]
[358526273,1745233842313,-500.0,0.00048855,7]
[358526275,1745233842322,-500.0,0.00048855,7]
[358526277,1745233842331,-636.37057109,0.00048855,7]
[358526279,1745233842341,-500.0,0.00048855,7]
[358526281,1745233842351,-500.0,0.00048855,7]
[358526283,1745233842360,-500.0,0.00048855,7]
[358526285,1745233842370,-500.0,0.00048855,7]
[358526287,1745233842379,-500.0,0.00048855,7]
[358526289,1745233842388,-500.0,0.00048855,7]
[358526291,1745233842397,-500.0,0.00048855,7]
[358526293,1745233842407,-500.0,0.00048855,7]
[358526295,1745233842416,-500.0,0.00048855,7]
[358526298,1745233842432,-500.0,0.00048855,7]
[358526300,1745233842443,-500.0,0.00048855,7]
[358526302,1745233842453,-500.0,0.00048855,7]
[358526304,1745233842463,-500.0,0.00048855,7]
[358526306,1745233842472,-373.28,0.00048855,7]
[358526308,1745233842481,-500.0,0.00048855,7]
[358526310,1745233842491,-500.0,0.00048855,7]
[358526312,1745233842500,-500.0,0.00048855,7]
[358526314,1745233842509,-537.99,0.00048855,7]
[358526316,1745233842519,-500.0,0.00048855,7]
[358526318,1745233842528,-500.0,0.00048855,7]
[358526320,1745233842538,-500.0,0.00048855,7]
[358526322,1745233842547,-500.0,0.00048855,7]
[358526324,1745233842557,-150.0,0.00048855,3]
[358526326,1745233842566,-500.0,0.00048855,7]
[358526328,1745233842575,-189.25,0.00048856,30]
[358526330,1745233842585,-151.0,0.00048856,14]
[358526332,1745233842594,-154.998731,0.00048856,14]
[358526334,1745233842604,-154.998731,0.00048856,14]
[358526336,1745233842613,-500.0,0.00048856,7]
[358526339,1745233842623,-500.0,0.00048856,7]
[358526341,1745233842632,-500.0,0.00048856,7]
[358526343,1745233842642,-500.0,0.00048856,7]
[358526345,1745233842652,-270.17919933,0.00048856,7]
[358526347,1745233842662,-500.0,0.00048856,7]
[358526349,1745233842671,-500.0,0.00048856,7]
[358526351,1745233842680,-622.93,0.00048856,7]
[358526353,1745233842689,-622.93,0.00048856,7]
[358526355,1745233842699,-720.5,0.00048856,7]
[358526357,1745233842708,-720.5,0.00048856,7]
[358526359,1745233842718,-634.71666975,0.00048856,7]
[358526361,1745233842728,-500.0,0.00048856,120]
[358526363,1745233842738,-500.0,0.00048856,120]
[358526365,1745233842747,-500.0,0.00048856,120]
[358526367,1745233842757,-500.0,0.00048856,120]
[358526369,1745233842766,-500.0,0.00048856,7]
[358526371,1745233842775,-500.0,0.00048856,7]
[358526373,1745233842785,-500.0,0.00048856,7]
[358526375,1745233842794,-500.0,0.00048856,7]
[358526377,1745233842803,-500.0,0.00048856,7]
[358526379,1745233842813,-537.99,0.00048856,7]
[358526381,1745233842823,-537.99,0.00048856,7]
[358526383,1745233842832,-537.99,0.00048856,7]
[358526385,1745233842842,-537.99,0.00048856,7]
[358526387,1745233842851,-537.99,0.00048856,7]
[358526389,1745233842861,-537.99,0.00048856,7]
[358526391,1745233842870,-537.99,0.00048856,7]
[358526393,1745233842879,-537.99,0.00048856,7]
[358526395,1745233842889,-537.99,0.00048856,7]
[358526397,1745233842898,-537.99,0.00048856,7]
[358526399,1745233842907,-537.99,0.00048856,7]
[358526401,1745233842916,-500.0,0.00048856,7]
[358526403,1745233842926,-537.99,0.00048856,7]
[358526404,1745233842934,-548.95331343,0.00048856,7]
[358526406,1745233842943,-537.99,0.00048856,7]
[358526408,1745233842953,-537.99,0.00048856,7]
[358526410,1745233842963,-537.99,0.00048856,7]
[358526412,1745233842975,-537.99,0.00048856,7]
[358526414,1745233842985,-537.99,0.00048856,7]
[358526416,1745233842994,-537.99,0.00048856,7]
[358526418,1745233843003,-537.99,0.00048856,7]
[358526420,1745233843012,-537.99,0.00048856,7]
[358526422,1745233843022,-538.13048278,0.00048856,7]
[358526424,1745233843032,-1228.12,0.00048856,2]
[358526426,1745233843041,-500.0,0.00048856,7]
[358526428,1745233843052,-500.0,0.00048856,7]
[358526430,1745233843061,-500.0,0.00048856,7]
[358526432,1745233843071,-631.52,0.00048856,7]
[358526434,1745233843080,-500.0,0.00048856,30]
[358526436,1745233843090,-500.0,0.00048856,7]
[358526438,1745233843099,-3245.94,0.00048856,7]
[358526440,1745233843109,-1500.0,0.00048856,120]
[358526442,1745233843118,-1500.0,0.00048856,120]
[358526444,1745233843127,-1500.0,0.00048856,120]
[358526445,1745233843136,-1500.0,0.00048856,120]
[358526447,1745233843145,-1500.0,0.00048856,120]
[358526450,1745233843154,-500.0,0.00048856,120]
[358526451,1745233843164,-617.42,0.00048856,7]
[358526453,1745233843173,-43366.71319413,0.00048856,30]
[358526455,1745233843183,-43366.71319413,0.00048856,30]
[358526457,1745233843192,-43366.71319413,0.00048856,30]
[358526459,1745233843201,-43366.71319413,0.00048856,30]
[358526461,1745233843210,-151.0,0.00048857,2]
[358526463,1745233843220,-244.00374545,0.00048857,2]
[358526465,1745233843229,-150.0,0.00048858,3]
[358526467,1745233843239,-5981.88,0.00048859,2]
[358526470,1745233843249,-500.0,0.00048859,7]
[358526471,1745233843260,-500.0,0.00048859,7]
[358526473,1745233843269,-500.0,0.00048859,7]
[358526475,1745233843278,-500.0,0.00048859,7]
[358526477,1745233843287,-500.0,0.00048859,7]
[358526479,1745233843297,-500.0,0.00048859,7]
[358526481,1745233843306,-500.0,0.00048859,7]
[358526483,1745233843316,-500.0,0.00048859,7]
[358526485,1745233843325,-500.0,0.00048859,7]
[358526500,1745233843455,-500.0,0.00048859,7]
[358526502,1745233843465,-500.0,0.00048859,7]
[358526504,1745233843474,-500.0,0.00048859,7]
[358526506,1745233843483,-365.88,0.00048859,7]
[358526508,1745233843492,-622.93,0.00048859,7]
[358526510,1745233843501,-622.93,0.00048859,7]
[358526512,1745233843510,-622.93,0.00048859,7]
[358526514,1745233843520,-622.93,0.00048859,7]
[358526516,1745233843529,-622.93,0.00048859,7]
[358526518,1745233843538,-622.93,0.00048859,7]
[358526520,1745233843547,-622.93,0.00048859,7]
[358526522,1745233843556,-622.93,0.00048859,7]
[358526524,1745233843567,-622.93,0.00048859,7]
[358526526,1745233843577,-622.93,0.00048859,7]
[358526528,1745233843586,-622.93,0.00048859,7]
[358526530,1745233843595,-622.93,0.00048859,7]
[358526532,1745233843604,-622.93,0.00048859,7]
[358526534,1745233843613,-622.93,0.00048859,7]
[358526536,1745233843622,-622.93,0.00048859,7]
[358526537,1745233843632,-622.93,0.00048859,7]
[358526539,1745233843641,-622.93,0.00048859,7]
[358526541,1745233843650,-622.93,0.00048859,7]
[358526543,1745233843659,-623.00561619,0.00048859,7]
[358526545,1745233843668,-720.5,0.00048859,7]
[358526547,1745233843678,-720.5,0.00048859,7]
[358526549,1745233843687,-720.5,0.00048859,7]
[358526551,1745233843696,-720.5,0.00048859,7]
[358526553,1745233843706,-720.5,0.00048859,7]
[358526554,1745233843715,-720.5,0.00048859,7]
[358526555,1745233843724,-720.5,0.00048859,7]
[358526556,1745233843733,-720.5,0.00048859,7]
[358526557,1745233843742,-720.5,0.00048859,7]
[358526558,1745233843751,-720.5,0.00048859,7]
[358526559,1745233843760,-720.5,0.00048859,7]
[358526561,1745233843770,-720.5,0.00048859,7]
[358526563,1745233843779,-720.5,0.00048859,7]
[358526564,1745233843788,-720.5,0.00048859,7]
[358526565,1745233843798,-720.5,0.00048859,7]
[358526566,1745233843807,-720.5,0.00048859,7]
[358526567,1745233843817,-720.5,0.00048859,7]
[358526569,1745233843826,-720.5,0.00048859,7]
[358526571,1745233843835,-720.5534331,0.00048859,7]
[358526573,1745233843845,-500.0,0.00048859,7]
[358526575,1745233843855,-500.0,0.00048859,7]
[358526577,1745233843865,-500.0,0.00048859,7]
[358526578,1745233843874,-500.0,0.00048859,7]
[358526580,1745233843884,-500.0,0.00048859,7]
[358526582,1745233843894,-500.0,0.00048859,7]
[358526584,1745233843904,-500.0,0.00048859,7]
[358526586,1745233843913,-500.0,0.00048859,7]
[358526588,1745233843923,-500.0,0.00048859,7]
[358526589,1745233843932,-500.0,0.00048859,7]
[358526590,1745233843941,-500.0,0.00048859,7]
[358526591,1745233843951,-500.0,0.00048859,7]
[358526592,1745233843960,-500.0,0.00048859,7]
[358526593,1745233843972,-500.0,0.00048859,7]
[358526594,1745233843983,-500.0,0.00048859,7]
[358526595,1745233843993,-500.0,0.00048859,7]
[358526596,1745233844004,-500.0,0.00048859,7]
[358526597,1745233844015,-459.58518566,0.00048859,7]
[358526598,1745233844026,-4024.13,0.00048859,7]
[358526599,1745233844035,-4024.13,0.00048859,7]
[358526600,1745233844046,-4024.13,0.00048859,7]
[358526601,1745233844056,-4024.13,0.00048859,7]
[358526602,1745233844066,-4024.13,0.00048859,7]
[358526603,1745233844076,-4024.13,0.00048859,7]
[358526604,1745233844086,-4024.13,0.00048859,7]
[358526605,1745233844095,-4024.13,0.00048859,7]
[358526606,1745233844106,-161.50977533,0.00048859,30]
[358526607,1745233844116,-4024.13,0.00048859,7]
[358526608,1745233844126,-4024.13,0.00048859,7]
[358526609,1745233844135,-4024.13,0.00048859,7]
[358526610,1745233844146,-4024.13,0.00048859,7]
[358526611,1745233844155,-4024.13,0.00048859,7]
[358526612,1745233844164,-4024.13,0.00048859,7]
[358526613,1745233844174,-4024.13,0.00048859,7]
[358526614,1745233844183,-4024.13,0.00048859,7]
[358526615,1745233844192,-4024.13,0.00048859,7]
[358526616,1745233844202,-4024.13,0.00048859,7]
[358526617,1745233844211,-500.0,0.00048859,30]
[358526618,1745233844220,-4024.13,0.00048859,7]
[358526619,1745233844229,-4024.13,0.00048859,7]
[358526620,1745233844238,-4024.13,0.00048859,7]
[358526621,1745233844247,-4024.2501,0.00048859,7]
[358526622,1745233844257,-500.0,0.00048859,7]
[358526623,1745233844266,-500.0,0.00048859,7]
[358526624,1745233844274,-500.0,0.00048859,7]
[358526625,1745233844284,-500.0,0.00048859,7]
[358526626,1745233844293,-407.91003913,0.00048859,7]
[358526627,1745233844302,-205.25838589,0.00048859,7]
[358526628,1745233844311,-500.0,0.00048859,7]
[358526629,1745233844320,-500.0,0.00048859,7]
[358526630,1745233844330,-500.0,0.00048859,7]
[358526631,1745233844339,-500.0,0.00048859,7]
[358526632,1745233844349,-500.0,0.00048859,7]
[358526633,1745233844358,-500.0,0.00048859,7]
[358526634,1745233844368,-500.0,0.00048859,7]
[358526635,1745233844377,-500.0,0.00048859,7]
[358526636,1745233844387,-500.0,0.00048859,7]
[358526637,1745233844396,-500.0,0.00048859,7]
[358526638,1745233844405,-500.0,0.00048859,7]
[358526639,1745233844415,-500.0,0.00048859,7]
[358526640,1745233844424,-546.74484885,0.00048859,7]
[358526641,1745233844434,-162.75681349,0.00048859,7]
[358526642,1745233844443,-1228.12,0.00048859,2]
[358526643,1745233844453,-1228.12,0.00048859,2]
[358526644,1745233844462,-1228.12,0.00048859,2]
[358526645,1745233844471,-1228.12,0.00048859,2]
[358526646,1745233844480,-1228.12,0.00048859,2]
[358526647,1745233844490,-1228.12,0.00048859,2]
[358526648,1745233844499,-1228.12,0.00048859,2]
[358526649,1745233844509,-1228.12,0.00048859,2]
[358526650,1745233844518,-1228.12,0.00048859,2]
[358526651,1745233844527,-1228.12,0.00048859,2]
[358526652,1745233844537,-1228.12,0.00048859,2]
[358526653,1745233844546,-1228.12,0.00048859,2]
[358526654,1745233844556,-1228.12,0.00048859,2]
[358526655,1745233844565,-1228.12,0.00048859,2]
[358526656,1745233844575,-500.0,0.00048859,7]
[358526657,1745233844584,-1228.12,0.00048859,2]
[358526658,1745233844593,-184.83,0.00048859,7]
[358526659,1745233844602,-1228.12,0.00048859,2]
[358526660,1745233844612,-1228.12,0.00048859,2]
[358526661,1745233844621,-1228.12,0.00048859,2]
[358526662,1745233844630,-1228.12,0.00048859,2]
[358526663,1745233844640,-1228.28466148,0.00048859,2]
[358526664,1745233844650,-500.0,0.00048859,7]
[358526665,1745233844659,-500.0,0.00048859,7]
[358526666,1745233844668,-500.0,0.00048859,7]
[358526667,1745233844677,-500.0,0.00048859,7]
[358526668,1745233844687,-500.0,0.00048859,7]
[358526669,1745233844696,-500.0,0.00048859,7]
[358526670,1745233844706,-500.0,0.00048859,7]
[358526671,1745233844715,-621.08,0.00048859,7]
[358526672,1745233844725,-500.0,0.00048859,7]
[358526673,1745233844734,-389.39344541,0.00048859,7]
[358526674,1745233844744,-603.93422604,0.00048859,7]
[358526675,1745233844753,-3245.94,0.00048859,7]
[358526676,1745233844763,-3245.94,0.00048859,7]
[358526677,1745233844772,-3245.94,0.00048859,7]
[358526678,1745233844782,-3245.94,0.00048859,7]
[358526679,1745233844791,-3245.94,0.00048859,7]
[358526680,1745233844800,-3245.94,0.00048859,7]
[358526681,1745233844809,-3245.94,0.00048859,7]
[358526682,1745233844818,-3245.94,0.00048859,7]
[358526683,1745233844828,-3245.94,0.00048859,7]
[358526684,1745233844837,-3245.94,0.00048859,7]
[358526685,1745233844846,-3245.94,0.00048859,7]
[358526686,1745233844856,-3245.94,0.00048859,7]
[358526687,1745233844866,-3245.94,0.00048859,7]
[358526688,1745233844875,-3245.94,0.00048859,7]
[358526689,1745233844885,-3245.94,0.00048859,7]
[358526690,1745233844895,-3246.1350256,0.00048859,7]
[358526691,1745233844905,-617.42,0.00048859,7]